bitfinex/quotes_ETHUSD_20220123
["timestamp","ask_amount","ask_price","bid_price","bid_amount"]
[1642961556719,13.4418,2434.2,2432.5,3.53512852]
[1642961556720,0.1643,2434.1,2432.5,3.53512852]
[1642961556924,0.1643,2434.1,2432.5,5.13512852]
[1642961557569,0.1643,2434.1,2433.7,1.26045548]
[1642961557767,0.1643,2434.1,2433.7,1.02216183]
[1642961557966,1.62486131,2434.3,2433.7,1.02216183]
[1642961557967,0.1643,2434.2,2433.7,1.02216183]
[1642961559370,0.1643,2434.2,2433.5,0.593]
[1642961559974,0.20477,2434.1,2433.5,0.593]
[1642961560176,0.1643,2434.0,2433.5,0.593]
[1642961560575,0.1643,2434.0,2433.6,1.2997675]
[1642961560782,10.42990153,2434.8,2433.8,0.02077916]
[1642961560783,0.1643,2434.5,2433.8,0.02077916]
[1642961560974,0.1643,2434.5,2434.0,0.00935575]
[1642961561234,0.1643,2434.7,2434.0,0.00935575]
[1642961561427,0.1643,2434.7,2434.1,0.593]
[1642961561628,0.1643,2434.9,2434.4,1.54158866]
[1642961561825,0.1643,2434.9,2434.4,0.75503592]
[1642961562232,0.1643,2434.9,2434.5,0.593]
[1642961562427,0.01254951,2435.0,2434.5,0.593]
[1642961562625,0.01254951,2435.0,2434.5,0.893]
[1642961562826,0.01254951,2435.0,2434.8,1.18743956]
[1642961563033,0.01254951,2435.0,2434.8,1.78043956]
[1642961563626,0.1642,2435.5,2434.8,1.78043956]
[1642961564028,0.1642,2435.5,2434.8,2.38043956]
[1642961564229,0.1642,2435.5,2434.8,3.43353956]
[1642961564732,7.43,2435.6,2434.9,1.0]
[1642961564967,7.43,2435.6,2435.0,0.593]
[1642961565171,7.43,2435.6,2435.2,1.45490436]
[1642961565366,0.1642,2435.5,2435.2,1.45490436]
[1642961566174,0.1642,2435.5,2435.0,0.593]
[1642961566572,0.01276495,2435.7,2435.0,0.593]
[1642961566573,0.1642,2435.6,2435.0,0.593]
[1642961567775,0.00227767,2435.4,2435.0,0.49601048]
[1642961567977,0.1642,2435.3,2435.0,0.49601048]
[1642961568842,0.1642,2435.3,2435.0,0.24907477]
[1642961570039,0.1642,2435.3,2435.1,1.16025488]
[1642961570235,0.00227767,2435.4,2435.1,1.16025488]
[1642961570641,0.00227767,2435.4,2435.2,0.593]
[1642961572669,0.01503933,2435.7,2435.2,0.593]
[1642961572869,0.1642,2435.6,2435.2,0.593]
[1642961575176,0.1642,2435.6,2435.2,0.893]
[1642961575377,0.01503933,2435.7,2435.2,0.893]
[1642961575671,0.00227438,2435.7,2435.2,0.893]
[1642961575872,4.6,2435.6,2435.2,0.3]
[1642961576073,0.00227438,2435.7,2435.3,0.593]
[1642961576528,0.00227438,2435.7,2435.6,1.49362774]
[1642961577736,5.1,2435.7,2435.6,1.17483464]
[1642961577931,5.1,2435.7,2435.3,0.593]
[1642961578132,5.1,2435.7,2435.3,0.893]
[1642961578632,5.1,2435.7,2435.3,1.193]
[1642961579132,0.69933785,2435.9,2435.3,1.193]
[1642961580168,0.69933785,2435.9,2435.5,1.51129421]
[1642961582074,0.69933785,2435.9,2435.6,0.893]
[1642961582476,0.69933785,2435.9,2435.6,1.893]
[1642961582874,0.69933785,2435.9,2435.5,1.50049684]
[1642961583080,0.69933785,2435.9,2435.6,0.593]
[1642961583278,0.69933785,2435.9,2435.6,0.893]
[1642961583478,0.69933785,2435.9,2435.6,0.593]
[1642961583715,0.69933785,2435.9,2435.6,0.893]
[1642961584318,0.69933785,2435.9,2435.6,1.193]
[1642961584520,0.69933785,2435.9,2435.6,2.193]
[1642961585324,0.17637386,2436.7,2435.7,4.8]
[1642961585523,0.164,2436.8,2435.8,1.593]
[1642961585728,0.164,2436.8,2436.7,1.14411418]
[1642961585924,3.364,2436.8,2436.7,1.14411418]
[1642961586123,0.164,2436.8,2436.7,1.14411418]
[1642961586323,2.49346535,2436.8,2436.7,1.14411418]
[1642961586924,5.19346535,2436.8,2436.7,1.14411418]
[1642961587123,5.02946535,2436.8,2436.7,1.14411418]
[1642961587324,5.02946535,2436.8,2436.3,0.593]
[1642961587576,2.7,2436.8,2436.3,0.593]
[1642961587773,4.02260522,2436.8,2436.3,0.52045201]
[1642961588577,4.02260522,2436.8,2435.8,1.0]
[1642961588578,5.17181208,2436.8,2435.8,1.0]
[1642961588876,0.01242901,2436.5,2435.8,1.6]
[1642961589077,0.01242901,2436.5,2435.8,0.3]
[1642961589275,0.01242901,2436.5,2435.4,1.2083]
[1642961589475,0.1642,2436.4,2435.3,8.0521]
[1642961589876,0.1642,2436.4,2435.3,4.3307]
[1642961590477,0.1642,2436.4,2435.3,4.9307]
[1642961590677,0.1642,2436.4,2435.4,1.0]
[1642961591078,1.56895206,2436.4,2435.7,1.49588839]
[1642961592724,0.00216456,2436.3,2435.7,1.49588839]
[1642961592925,0.1642,2436.2,2435.7,1.49588839]
[1642961593928,1.0956768,2436.0,2435.4,1.593]
[1642961594130,1.0956768,2436.0,2435.1,0.593]
[1642961594332,6.57103561,2435.2,2434.5,8.6635]
[1642961594529,6.57103561,2435.2,2434.5,3.7922]
[1642961594827,6.57103561,2435.2,2434.5,0.593]
[1642961595071,1.37600403,2435.6,2434.8,1.43702533]
[1642961595475,1.37600403,2435.6,2434.8,1.73702533]
[1642961596573,1.15540003,2435.3,2434.8,1.73702533]
[1642961598581,1.15540003,2435.3,2434.5,0.593]
[1642961598826,0.20780038,2435.2,2434.2,3.612]
[1642961599023,0.20780038,2435.2,2434.1,0.06679739]
[1642961599024,0.1642,2435.2,2434.1,0.06679739]
[1642961599223,0.03605297,2435.1,2434.1,0.06679739]
[1642961599425,0.1642,2435.0,2434.1,0.06679739]
[1642961599627,0.1642,2435.0,2434.4,1.31365213]
[1642961600425,0.1642,2435.0,2434.1,1.66679739]
[1642961600625,1.49161691,2435.1,2434.1,1.66679739]
[1642961601232,0.00350097,2435.0,2434.1,1.66679739]
[1642961601426,2.04063926,2435.0,2434.1,1.66679739]
[1642961601626,2.04063926,2435.0,2434.3,1.39287811]
[1642961602027,2.04063926,2435.0,2434.3,1.99287811]
[1642961602483,1.49161691,2435.1,2434.3,1.99287811]
[1642961602679,1.96542553,2435.0,2434.3,1.99287811]
[1642961602878,0.00211842,2434.9,2434.3,1.99287811]
[1642961603080,0.03612827,2434.9,2434.3,1.99287811]
[1642961607423,0.03612827,2434.9,2434.3,1.39287811]
[1642961607826,0.18515303,2434.9,2434.3,1.39287811]
[1642961608027,0.18515303,2434.9,2434.1,0.06679739]
[1642961608425,0.02491705,2434.8,2434.1,0.06679739]
[1642961609226,1.50500152,2434.5,2434.1,1.29806936]
[1642961609626,1.50500152,2434.5,2434.1,1.59806936]
[1642961609827,0.18515303,2434.9,2434.1,1.59806936]
[1642961610064,0.18515303,2434.9,2434.1,1.89806936]
[1642961610465,0.18515303,2434.9,2434.1,1.59806936]
[1642961611066,0.02095303,2434.9,2434.1,1.59806936]
[1642961611270,1.51537353,2434.9,2434.5,1.36833814]
[1642961611676,1.51537353,2434.9,2434.1,0.36679739]
[1642961611871,1.51431894,2434.9,2434.1,0.06679739]
[1642961612774,1.51537024,2434.9,2434.1,0.06679739]
[1642961612972,1.51537024,2434.9,2434.2,0.893]
[1642961613174,1.51430641,2434.9,2434.4,1.44659368]
[1642961613373,1.11569904,2434.9,2434.4,1.44659368]
[1642961613574,0.3,2435.7,2434.5,0.01666113]
[1642961613817,0.1642,2435.6,2434.2,0.893]
[1642961614019,0.1642,2435.6,2434.2,1.893]
[1642961614225,0.20529,2435.5,2434.2,1.893]
[1642961614422,0.1642,2435.4,2434.2,1.893]
[1642961614623,1.10566496,2434.8,2434.4,1.43623641]
[1642961617574,1.10566496,2434.8,2434.2,0.593]
[1642961617777,0.16621372,2434.7,2433.9,0.1643]
[1642961617978,0.16621372,2434.7,2433.8,0.02]
[1642961617979,0.23243396,2434.2,2433.8,0.02]
[1642961618777,0.1643,2434.6,2433.8,1.16236441]
[1642961618973,0.36959,2434.6,2433.8,1.16236441]
[1642961620175,1.0593507,2434.1,2433.8,0.02]
[1642961621221,2.39434771,2434.1,2433.8,0.02]
[1642961621425,0.1643,2434.0,2433.8,0.02]
[1642961622830,0.16619063,2434.0,2433.8,0.02]
[1642961623831,1.6735934,2434.0,2433.8,0.02]
[1642961624234,1.6735934,2434.0,2433.8,0.01573156]
[1642961624831,0.20529,2433.9,2433.8,0.01573156]
[1642961625076,3.6143,2433.9,2433.8,0.01573156]
[1642961625976,3.6143,2433.9,2433.8,3.156e-05]
[1642961626575,8.0643,2433.9,2433.8,3.156e-05]
[1642961627782,8.27147733,2433.9,2433.8,3.156e-05]
[1642961628185,3.61618733,2433.9,2433.8,3.156e-05]
[1642961628585,3.45188733,2433.9,2433.8,3.156e-05]
[1642961628825,0.00188733,2433.9,2433.8,3.156e-05]
[1642961630336,0.00188733,2433.9,2433.8,0.59303156]
[1642961630533,0.00188733,2433.9,2433.8,5.96153877]
[1642961630727,0.00188733,2433.9,2433.8,6.16681877]
[1642961630928,0.00188733,2433.9,2433.8,7.21090345]
[1642961631128,0.00188733,2433.9,2433.8,4.79831156]
[1642961632130,0.00188733,2433.9,2433.8,7.37364743]
[1642961632334,0.00188733,2433.9,2433.8,10.98104743]
[1642961632577,0.00188733,2433.9,2433.8,8.57001156]
[1642961632778,1.1832,2435.0,2433.9,5.35]
[1642961632978,1.1832,2435.0,2434.0,0.7573]
[1642961633181,0.9947586,2434.9,2434.5,1.24842703]
[1642961634582,0.9947586,2434.9,2434.6,0.593]
[1642961634984,0.9947586,2434.9,2434.6,1.593]
[1642961635581,0.9947586,2434.9,2434.6,0.593]
[1642961635783,0.9947586,2434.9,2434.6,0.24682802]
[1642961636420,0.1642,2435.4,2434.6,0.24682802]
[1642961636633,0.1642,2435.5,2434.6,0.24682802]
[1642961637427,1.0688925,2435.2,2434.9,1.1327]
[1642961637632,1.0688925,2435.2,2434.9,1.7257]
[1642961638230,0.03315409,2435.3,2434.9,1.7257]
[1642961638627,0.03315409,2435.3,2434.9,2.0257]
[1642961638829,0.03315409,2435.3,2434.9,2.3257]
[1642961639430,0.97730588,2435.3,2434.9,2.3257]
[1642961639629,0.03315409,2435.3,2434.9,2.3257]
[1642961640286,0.03315409,2435.3,2434.9,1.7257]
[1642961640883,1.16111154,2435.2,2434.9,1.7257]
[1642961642683,0.00180895,2435.1,2434.9,1.7257]
[1642961642888,0.03485025,2435.1,2434.9,1.7257]
[1642961643085,0.03485025,2435.1,2434.9,0.593]
[1642961646726,0.03485025,2435.1,2434.9,0.893]
[1642961646929,0.03485025,2435.1,2435.0,2.52887704]
[1642961647127,0.03485025,2435.1,2435.0,4.28607704]
[1642961647326,0.03485025,2435.1,2435.0,4.58607704]
[1642961647587,7.5942,2436.0,2435.1,4.4]
[1642961647588,7.43,2436.0,2435.1,4.4]
[1642961647790,7.5942,2436.0,2435.2,0.593]
[1642961647987,7.5942,2436.0,2435.6,1.25025854]
[1642961648191,7.5942,2436.0,2435.6,0.98548674]
[1642961649287,2.95643762,2435.7,2435.6,0.98548674]
[1642961649687,0.20643762,2435.7,2435.6,0.98548674]
[1642961650088,0.20643762,2435.7,2435.5,0.593]
[1642961651228,0.1642,2435.6,2435.1,0.1642]
[1642961651435,0.311903,2435.4,2435.1,0.1642]
[1642961651634,0.98882586,2435.3,2435.1,0.1642]
[1642961652234,7.53263069,2435.2,2435.1,0.1642]
[1642961652635,7.69683069,2435.2,2435.1,0.1642]
[1642961653237,9.49683069,2435.2,2435.1,0.1642]
[1642961653933,0.51347306,2434.5,2434.2,1.71575739]
[1642961654334,0.1643,2435.1,2434.2,1.71575739]
[1642961654989,0.1643,2435.1,2434.2,2.31575739]
[1642961655180,0.1643,2435.1,2434.2,1.71575739]
[1642961655378,0.8612688,2434.7,2434.2,1.71575739]
[1642961656878,0.66530636,2434.7,2434.2,1.71575739]
[1642961657783,0.1643,2435.1,2434.2,1.71575739]
[1642961657784,0.00191932,2434.6,2434.2,1.71575739]
[1642961657982,0.00191932,2434.6,2434.3,0.13390481]
[1642961659831,0.00191932,2434.6,2434.3,0.29820481]
[1642961660127,0.00191932,2434.6,2434.3,1.13390481]
[1642961661132,0.00191932,2434.6,2434.4,0.1643]
[1642961661332,0.00191932,2434.6,2434.3,1.13390481]
[1642961661529,0.26653093,2434.5,2434.3,1.13390481]
[1642961661931,0.00191932,2434.6,2434.3,1.13390481]
[1642961662781,0.16621555,2435.1,2434.3,1.13390481]
[1642961662978,0.93451802,2434.7,2434.3,1.0]
[1642961663377,0.93451802,2434.7,2434.2,0.7265267]
[1642961663578,0.93451802,2434.7,2434.2,0.1335267]
[1642961663978,0.16621555,2435.1,2434.2,0.1335267]
[1642961663979,0.20761845,2434.3,2434.2,0.1335267]
[1642961664181,1.37211845,2434.3,2434.2,0.10442933]
[1642961664984,1.57740845,2434.3,2434.2,0.10442933]
[1642961665185,0.05712888,2434.1,2433.8,3.156e-05]
[1642961665381,0.01545718,2434.0,2433.8,3.156e-05]
[1642961665582,7.0143,2433.9,2433.8,3.156e-05]
[1642961667027,7.21959,2433.9,2433.8,3.156e-05]
[1642961667432,7.0143,2433.9,2433.8,3.156e-05]
[1642961667632,7.21959,2433.9,2433.8,3.156e-05]
[1642961667831,7.0143,2433.9,2433.8,3.156e-05]
[1642961668032,7.05538714,2433.9,2433.8,3.156e-05]
[1642961668234,7.26067714,2433.9,2433.8,3.156e-05]
[1642961668531,7.05538714,2433.9,2433.8,3.156e-05]
[1642961669133,7.26067714,2433.9,2433.8,3.156e-05]
[1642961669334,7.05538714,2433.9,2433.8,3.156e-05]
[1642961669537,0.20538714,2433.9,2433.8,3.156e-05]
[1642961669996,0.04108714,2433.9,2433.8,3.156e-05]
[1642961670189,0.02788714,2433.9,2433.8,3.156e-05]
[1642961670387,0.02788714,2433.9,2433.8,0.59303156]
[1642961671287,0.02788714,2433.9,2433.8,1.59303156]
[1642961672087,0.02788714,2433.9,2433.8,1.75733156]
[1642961672890,0.02780722,2433.9,2433.8,1.75733156]
[1642961673292,0.02780722,2433.9,2433.8,0.75733156]
[1642961673925,0.0174472,2433.9,2433.8,0.75733156]
[1642961674129,0.0174472,2433.9,2433.8,0.59303156]
[1642961675526,0.0174472,2433.9,2433.8,1.59303156]
[1642961675730,0.0174472,2433.9,2433.8,0.59303156]
[1642961675927,0.0174472,2433.9,2433.8,1.59303156]
[1642961676631,0.0174472,2433.9,2433.8,1.75733156]
[1642961677876,0.01437139,2433.9,2433.8,1.75733156]
[1642961678077,0.01437139,2433.9,2433.8,2.05733156]
[1642961678478,0.01437139,2433.9,2433.8,0.75733156]
[1642961678678,0.01437139,2433.9,2433.8,0.59303156]
[1642961680681,0.01437139,2433.9,2433.8,3.156e-05]
[1642961680882,3.46437139,2433.9,2433.8,3.156e-05]
[1642961681832,7.21437139,2433.9,2433.8,3.156e-05]
[1642961682033,0.00076844,2433.7,2433.4,0.1643]
[1642961682235,0.24432582,2433.5,2433.4,0.1643]
[1642961682436,0.24432582,2433.5,2433.2,1.46524514]
[1642961682935,0.24432582,2433.5,2433.2,0.02]
[1642961683334,0.24432582,2433.5,2433.1,0.27]
[1642961684340,0.24432582,2433.5,2433.0,1.45768044]
[1642961684537,2.00625409,2433.4,2432.9,3.7404]
[1642961684737,0.89781065,2433.1,2432.8,0.1843]
[1642961684998,0.1643,2433.3,2432.8,0.1843]
[1642961685187,0.1643,2433.6,2432.8,0.1843]
[1642961685386,0.1643,2433.6,2432.8,1.46582791]
[1642961685686,1.44596009,2433.6,2432.8,1.46582791]
[1642961685885,2.02395703,2433.5,2432.8,1.46582791]
[1642961686088,1.03114507,2433.1,2432.8,1.25152791]
[1642961686586,0.1643,2433.4,2432.8,1.25152791]
[1642961687797,0.01702908,2433.0,2432.9,0.63120564]
[1642961687992,0.16506844,2433.7,2432.9,0.63120564]
[1642961687993,0.00076844,2433.7,2433.1,0.0136788]
[1642961688191,0.00076844,2433.7,2433.2,0.7573]
[1642961688725,0.00076844,2433.7,2433.5,1.08547968]
[1642961688927,0.00076844,2433.7,2433.5,1.67847968]
[1642961689530,0.00076844,2433.7,2433.5,0.593]
[1642961689726,0.00076844,2433.7,2433.3,1.3]
[1642961691226,0.00076844,2433.7,2433.4,1.35292872]
[1642961691829,0.00076844,2433.7,2433.5,0.593]
[1642961692879,0.01886755,2433.6,2433.5,0.593]
[1642961693779,0.01886755,2433.6,2433.4,1.35292872]
[1642961699136,0.01886755,2433.6,2433.4,1.30292872]
[1642961699635,0.01886755,2433.6,2433.4,1.89592872]
[1642961700276,0.01886755,2433.6,2433.4,2.19592872]
[1642961700478,0.01886755,2433.6,2433.4,2.49592872]
[1642961701280,0.05712888,2434.1,2433.6,3.2]
[1642961701483,0.05712888,2434.1,2433.8,1.11506418]
[1642961701679,2.888e-05,2434.1,2434.0,5.35528]
[1642961701881,2.888e-05,2434.1,2434.0,6.31897739]
[1642961702081,2.888e-05,2434.1,2434.0,8.37627739]
[1642961702491,2.888e-05,2434.1,2434.0,3.22627739]
[1642961702684,2.888e-05,2434.1,2434.0,3.02099739]
[1642961702884,2.888e-05,2434.1,2434.0,2.12409739]
[1642961703283,2.888e-05,2434.1,2434.0,1.82409739]
[1642961703724,2.888e-05,2434.1,2434.0,1.12409739]
[1642961703931,2.888e-05,2434.1,2434.0,1.95979739]
[1642961704136,2.888e-05,2434.1,2434.0,0.95979739]
[1642961707882,0.01712259,2434.1,2433.7,4.1613]
[1642961708085,0.01712259,2434.1,2433.7,3.997]
[1642961708582,0.01712259,2434.1,2433.7,3.947]
[1642961708782,0.01712259,2434.1,2433.5,4.3219]
[1642961709280,0.01712259,2434.1,2433.4,4.5252]
[1642961709481,0.01712259,2434.1,2433.8,0.30569766]
[1642961711091,1.05067493,2434.0,2433.8,0.30569766]
[1642961711333,1.05548847,2434.0,2433.8,0.30569766]
[1642961711730,0.01712259,2434.1,2433.8,0.21744566]
[1642961712841,7.00369653,2433.9,2433.8,0.21744566]
[1642961713439,9.11799653,2433.9,2433.8,0.21744566]
[1642961713739,9.32328653,2433.9,2433.8,0.21744566]
[1642961713935,8.91471813,2433.9,2433.8,0.21744566]
[1642961714336,7.9,2433.8,2433.1,0.1643]
[1642961714538,0.1643,2433.7,2433.0,1.35111402]
[1642961715997,0.1643,2433.7,2433.1,0.3]
[1642961715998,0.0143,2433.7,2433.1,0.3]
[1642961716196,0.01704855,2433.9,2433.1,1.0573]
[1642961716595,0.01704855,2433.9,2433.2,2.35097719]
[1642961716797,0.01704855,2433.9,2433.4,0.01707434]
[1642961716999,0.01704855,2433.9,2433.6,0.01648628]
[1642961717198,0.01704855,2433.9,2433.7,0.76741761]
[1642961717400,0.01704855,2433.9,2433.8,7.29779838]
[1642961717599,0.17653311,2435.2,2433.9,7.9]
[1642961717800,0.01223311,2435.2,2434.0,0.76167284]
[1642961718004,0.01223311,2435.2,2434.0,2.0573]
[1642961718200,0.01223311,2435.2,2434.2,7.41]
[1642961718400,0.01223311,2435.2,2434.3,0.7573]
[1642961718735,0.1643,2435.3,2435.1,1.46047315]
[1642961718736,0.12653311,2435.3,2435.1,1.46047315]
[1642961718935,7.741903,2435.4,2435.1,1.46047315]
[1642961719333,4.99538161,2435.3,2435.1,1.46047315]
[1642961719733,7.741903,2435.4,2435.1,1.46047315]
[1642961720133,7.741903,2435.4,2435.0,0.593]
[1642961720336,3.35,2435.1,2435.0,0.593]
[1642961720542,3.35,2435.1,2434.4,3.726]
[1642961720844,3.35,2435.1,2434.7,0.593]
[1642961721036,8.50355824,2435.1,2434.7,0.593]
[1642961721235,8.50355824,2435.1,2434.4,1.86551315]
[1642961721434,0.83319582,2434.9,2434.4,1.86551315]
[1642961721842,5.10894065,2434.5,2434.3,0.1643]
[1642961722039,0.3,2434.9,2433.5,0.593]
[1642961722040,0.44475601,2434.2,2433.5,0.593]
[1642961723584,0.8927871,2433.6,2433.5,0.593]
[1642961723787,0.8927871,2433.6,2433.2,4.0276]
[1642961723788,0.8927871,2433.6,2433.2,0.593]
[1642961723985,0.1643,2434.1,2433.5,1.52661191]
[1642961724986,1.12598572,2434.0,2433.5,1.52661191]
[1642961726328,0.1643,2434.1,2433.5,1.52661191]
[1642961726728,0.1643,2434.1,2433.5,2.11961191]
[1642961726933,0.1643,2434.1,2433.5,2.41961191]
[1642961727135,0.44475601,2434.2,2433.5,2.71961191]
[1642961727332,0.44475601,2434.2,2434.0,1.25936194]
[1642961728540,0.44475601,2434.2,2434.1,0.593]
[1642961728938,0.44475601,2434.2,2434.1,0.893]
[1642961729140,0.44475601,2434.2,2434.1,6.46258]
[1642961729141,5.601e-05,2434.2,2434.1,6.46258]
[1642961729339,5.601e-05,2434.2,2434.1,9.75423415]
[1642961729536,5.601e-05,2434.2,2434.1,4.55423415]
[1642961729983,5.601e-05,2434.2,2434.1,2.26258]
[1642961730380,5.601e-05,2434.2,2434.1,4.86258]
[1642961730581,5.601e-05,2434.2,2434.1,7.13351862]
[1642961730984,5.601e-05,2434.2,2434.1,4.53351862]
[1642961731183,5.601e-05,2434.2,2434.1,2.26258]
[1642961731983,5.601e-05,2434.2,2434.1,2.0573]
[1642961732983,5.601e-05,2434.2,2434.1,1.893]
[1642961733390,5.601e-05,2434.2,2434.1,18.13275564]
[1642961733834,0.02544607,2435.1,2434.2,5.75]
[1642961734035,0.02544607,2435.1,2434.4,1.11951806]
[1642961734233,0.02544607,2435.1,2435.0,1.36536657]
[1642961734438,0.02544607,2435.1,2435.0,0.96753677]
[1642961737687,0.02738423,2435.1,2435.0,0.96753677]
[1642961737885,0.02738423,2435.1,2435.0,1.56053677]
[1642961738290,0.02738423,2435.1,2435.0,2.16053677]
[1642961738488,0.02738423,2435.1,2435.0,2.36581677]
[1642961738891,0.02738423,2435.1,2435.0,9.77581677]
[1642961739086,0.02738423,2435.1,2435.0,10.77581677]
[1642961739293,0.02738423,2435.1,2435.0,12.08411677]
[1642961739887,0.02738423,2435.1,2435.0,12.07013369]
[1642961740691,0.02738423,2435.1,2435.0,15.57013369]
[1642961741938,0.311903,2435.4,2435.1,4.25]
[1642961742140,0.311903,2435.4,2435.3,7.61528]
[1642961742338,0.311903,2435.4,2435.3,8.003]
[1642961742538,0.311903,2435.4,2435.3,9.50828]
[1642961743139,0.311903,2435.4,2435.3,13.00828]
[1642961744341,0.311903,2435.4,2435.3,11.503]
[1642961744545,0.311903,2435.4,2435.3,12.503]
[1642961744743,0.311903,2435.4,2435.3,8.003]
[1642961744994,1.29967978,2435.4,2435.3,8.003]
[1642961745383,1.29967978,2435.4,2435.3,5.69029057]
[1642961745384,8.41978513,2435.4,2435.3,5.69029057]
[1642961745583,6.34967978,2435.4,2435.3,0.593]
[1642961746691,6.34967978,2435.4,2434.7,0.1642]
[1642961746692,8.62138334,2435.4,2434.7,0.1642]
[1642961746883,8.62138334,2435.4,2434.9,0.593]
[1642961747285,6.73159593,2435.4,2434.9,0.593]
[1642961747488,6.52630593,2435.4,2434.9,0.593]
[1642961747886,1.47630593,2435.4,2434.9,2.04174871]
[1642961748086,0.48852915,2435.4,2434.9,2.04174871]
[1642961748288,0.476103,2435.4,2434.9,2.04174871]
[1642961748487,0.311903,2435.4,2434.9,2.64174871]
[1642961748734,0.311903,2435.4,2434.9,3.64174871]
[1642961749436,0.311903,2435.4,2435.3,1.25301696]
[1642961749638,0.311903,2435.4,2435.3,1.84601696]
[1642961750440,0.311903,2435.4,2435.3,9.85601696]
[1642961750740,0.311903,2435.4,2435.3,10.85601696]
[1642961751638,0.311903,2435.4,2435.3,11.06129696]
[1642961752038,7.65194505,2436.3,2435.3,11.06129696]
[1642961752236,7.65194505,2436.3,2435.4,7.41]
[1642961752493,7.65194505,2436.3,2435.5,0.893]
[1642961752892,0.22194505,2436.3,2435.6,0.3]
[1642961753094,0.22194505,2436.3,2435.9,1.39157268]
[1642961753292,0.22194505,2436.3,2436.0,0.593]
[1642961753593,0.22194505,2436.3,2436.0,1.593]
[1642961754194,0.22194505,2436.3,2436.0,0.593]
[1642961755592,7.4,2436.2,2436.0,0.2732089]
[1642961757240,0.22194505,2436.3,2436.0,0.2732089]
[1642961757839,0.03564674,2436.1,2436.0,0.2732089]
[1642961759845,0.03564674,2436.1,2435.5,1.33617433]
[1642961760084,0.01079811,2436.0,2435.6,0.593]
[1642961761083,0.19984674,2436.1,2435.6,0.593]
[1642961763588,0.19984674,2436.1,2435.4,2.32505112]
[1642961763840,0.19984674,2436.1,2435.4,1.32505112]
[1642961764041,0.19984674,2436.1,2435.4,1.0]
[1642961764242,0.19984674,2436.1,2435.3,0.3]
[1642961764441,0.19984674,2436.1,2435.2,2.193]
[1642961764641,0.19984674,2436.1,2435.2,1.6]
[1642961765244,0.19984674,2436.1,2435.3,1.52389276]
[1642961765644,0.19984674,2436.1,2435.3,2.52389276]
[1642961765942,0.19984674,2436.1,2435.1,3.7999]
[1642961767346,0.19984674,2436.1,2435.2,1.0]
[1642961767596,0.19984674,2436.1,2435.4,1.38354967]
[1642961767597,0.40513674,2436.1,2435.4,1.38354967]
[1642961768693,0.40513674,2436.1,2435.2,1.0]
[1642961769694,1.09185326,2435.8,2435.2,1.0]
[1642961770494,0.40513674,2436.1,2435.2,1.0]
[1642961771343,0.40513674,2436.1,2435.1,1.10892747]
[1642961772047,1.29739505,2435.9,2435.1,1.10892747]
[1642961772245,0.1642,2435.8,2435.1,1.10892747]
[1642961775690,0.1642,2435.8,2434.9,1.3]
[1642961775895,0.16338616,2435.8,2434.9,1.6]
[1642961776596,0.36867616,2435.8,2434.8,3.827]
[1642961776897,1.52706815,2435.5,2434.8,5.29887682]
[1642961777096,0.1642,2435.4,2434.8,1.47187682]
[1642961777498,0.1642,2435.7,2434.8,1.47187682]
[1642961777898,0.19962129,2435.7,2434.8,1.47187682]
[1642961778736,0.00965855,2435.6,2434.8,1.47187682]
[1642961778946,0.00760738,2435.4,2434.8,1.47187682]
[1642961779146,0.00642859,2435.5,2434.8,1.47187682]
[1642961779343,0.1642,2435.4,2434.8,1.47187682]
[1642961779544,0.1642,2435.6,2434.8,1.47187682]
[1642961781546,0.1642,2435.6,2435.4,1.09290875]
[1642961781750,0.1642,2435.6,2435.4,0.80355931]
[1642961782800,4.73530853,2435.5,2435.4,0.80355931]
[1642961783006,4.89950853,2435.5,2435.4,0.80355931]
[1642961783202,4.89950853,2435.5,2434.6,0.593]
[1642961783402,0.1642,2435.4,2434.7,1.3]
[1642961783602,0.1642,2435.4,2434.7,0.3]
[1642961783800,0.1642,2435.4,2434.7,2.52658294]
[1642961784000,0.1642,2435.4,2434.6,1.193]
[1642961784202,0.1642,2435.4,2434.7,3.5]
[1642961784601,0.1642,2435.4,2434.7,5.71988697]
[1642961785401,0.1642,2435.4,2435.3,1.48539504]
[1642961785801,3.7642,2435.4,2435.3,1.48539504]
[1642961786104,0.03530853,2435.5,2435.3,2.08539504]
[1642961786347,0.03530853,2435.5,2435.4,2.23284196]
[1642961786546,0.03530853,2435.5,2435.4,1.593]
[1642961786748,0.03530853,2435.5,2435.4,1.79828]
[1642961786947,0.03530853,2435.5,2435.4,1.593]
[1642961787147,0.03530853,2435.5,2435.4,3.85022864]
[1642961787756,0.03530853,2435.5,2435.4,4.01442864]
[1642961787956,7.46530853,2436.2,2436.0,1.43748739]
[1642961789155,7.46530853,2436.2,2436.1,3.5]
[1642961789354,7.46530853,2436.2,2436.0,1.80748739]
[1642961790192,0.03530853,2436.2,2436.0,1.80748739]
[1642961790994,0.03530853,2436.2,2436.0,1.43748739]
[1642961791793,0.03530853,2436.2,2436.0,1.05986465]
[1642961793000,0.1879899,2436.6,2436.0,1.65986465]
[1642961793199,0.1879899,2436.6,2436.1,2.84172974]
[1642961793200,6.6600669,2436.5,2436.1,2.84172974]
[1642961793405,0.0239899,2436.6,2436.1,0.593]
[1642961794843,0.0239899,2436.6,2436.4,1.36584754]
[1642961795047,0.0239899,2436.6,2436.4,1.95884754]
[1642961796050,0.0239899,2436.6,2436.5,0.3]
[1642961796445,0.0239899,2436.6,2436.5,1.3]
[1642961797045,0.0239899,2436.6,2436.5,1.893]
[1642961797901,7.46604207,2437.3,2436.5,1.893]
[1642961798101,7.46604207,2437.3,2436.8,1.42375678]
[1642961798299,0.04149492,2437.2,2436.8,1.42375678]
[1642961798703,0.04092649,2437.1,2436.8,1.42375678]
[1642961798901,0.20850048,2437.0,2436.7,0.593]
[1642961799101,0.24885855,2437.0,2436.7,0.593]
[1642961799300,0.24885855,2437.0,2436.4,4.5842]
[1642961799301,0.164,2436.9,2436.4,4.5842]
[1642961799500,0.164,2436.9,2436.4,0.593]
[1642961799901,0.85007789,2436.6,2436.4,0.593]
[1642961800301,0.85007789,2436.6,2436.2,0.06679739]
[1642961802147,1.6218615,2436.9,2436.2,0.06679739]
[1642961802448,0.164,2436.9,2436.2,0.06679739]
[1642961802853,0.03587211,2436.5,2436.2,0.06679739]
[1642961803559,8.01906475,2436.0,2435.9,0.164]